fUST/lending_fUST_20250723
["ID","MTS","AMOUNT","RATE_DAILY","PERIOD"]
[374095548,1753201844210,-500.0,0.00019578,2]
[374095549,1753201844219,-190.76926695,0.00019578,2]
[374095550,1753201844231,-911.02,0.00019578,2]
[374095551,1753201844240,-1314.88,0.00019578,2]
[374095552,1753201844250,-460.0,0.00019771,2]
[374095553,1753201844259,-460.0,0.00019771,2]
[374095554,1753201844275,-558.99,0.00019772,2]
[374095555,1753201844285,-460.0,0.00019772,2]
[374095556,1753201844295,-1534.86,0.00019773,2]
[374095557,1753201844304,-460.0,0.00019774,2]
[374095558,1753201844314,-460.0,0.00019774,2]
[374095559,1753201844324,-522.0,0.00019775,2]
[374095560,1753201844334,-460.0,0.00019775,2]
[374095561,1753201844344,-897.23,0.00019775,2]
[374095562,1753201844353,-25000.0,0.00019789,2]
[374095563,1753201844363,-1109.63266383,0.00019831,2]
[374095564,1753201844372,-360.0,0.00019846,2]
[374095565,1753201844382,-1559.51,0.00019851,2]
[374095566,1753201844391,-990.03,0.00019851,2]
[374095567,1753201844400,-944.46,0.00019851,2]
[374095568,1753201844410,-779.94,0.00019851,2]
[374095569,1753201844420,-500.0,0.00019852,2]
[374095570,1753201844429,-911.02,0.00019852,2]
[374095571,1753201844439,-1314.88,0.00019852,2]
[374095572,1753201844448,-912.0,0.00019895,2]
[374095573,1753201844458,-16000.0,0.0002,2]
[374095574,1753201844469,-460.0,0.00020045,2]
[374095575,1753201844480,-460.0,0.00020045,2]
[374095576,1753201844490,-558.99,0.00020046,2]
[374095577,1753201844499,-460.0,0.00020046,2]
[374095578,1753201844509,-1534.86,0.00020047,2]
[374095579,1753201844518,-460.0,0.00020048,2]
[374095580,1753201844528,-460.0,0.00020048,2]
[374095581,1753201844538,-522.0,0.00020049,2]
[374095582,1753201844547,-460.0,0.00020049,2]
[374095583,1753201844557,-897.23,0.00020049,2]
[374095584,1753201844567,-223.0315306,0.00020062,2]
[374095585,1753201844577,-1109.63266383,0.00020107,2]
[374095586,1753201844587,-1559.51,0.00020125,2]
[374095587,1753201844597,-990.03,0.00020125,2]
[374095588,1753201844607,-944.46,0.00020125,2]
[374095589,1753201844617,-779.94,0.00020125,2]
[374095590,1753201844627,-500.0,0.00020126,2]
[374095591,1753201844637,-911.02,0.00020126,2]
[374095592,1753201844647,-1314.88,0.00020126,2]
[374095593,1753201844656,-247.994133,0.00020187,2]
[374095594,1753201844666,-168.0,0.00020208,2]
[374095595,1753201844675,-168.0,0.00020226,2]
[374095596,1753201844686,-168.0,0.00020226,2]
[374095597,1753201844696,-168.0,0.00020283,2]
[374095598,1753201844706,-168.0,0.00020299,2]
[374095599,1753201844715,-460.0,0.00020319,2]
[374095600,1753201844731,-460.0,0.00020319,2]
[374095601,1753201844740,-558.99,0.0002032,2]
[374095602,1753201844750,-460.0,0.0002032,2]
[374095603,1753201844761,-1534.86,0.00020321,2]
[374095604,1753201844771,-281.3389712,0.00020322,2]
[374095605,1753201844780,-460.0,0.00020322,2]
[374095606,1753201844790,-522.0,0.00020323,2]
[374095607,1753201844800,-460.0,0.00020323,2]
[374095608,1753201844809,-897.23,0.00020323,2]
[374095609,1753201844819,-25000.0,0.00020337,2]
[374095610,1753201844829,-1109.63266383,0.00020383,3]
[374095611,1753201844841,-800.0,0.00020394,2]
[374095612,1753201844851,-460.0,0.00020394,2]
[374095613,1753201844863,-1559.51,0.00020399,2]
[374095614,1753201844872,-990.03,0.00020399,2]
[374095615,1753201844882,-944.46,0.00020399,2]
[374095616,1753201844892,-779.94,0.00020399,2]
[374095617,1753201844903,-303.98177811,0.000204,2]
[374095618,1753201844913,-911.02,0.000204,2]
[374095619,1753201844922,-1314.88,0.000204,2]
[374095620,1753201844932,-168.0,0.00020402,2]
[374095621,1753201844941,-168.0,0.00020406,2]
[374095622,1753201844951,-460.0,0.00020593,2]
[374095623,1753201844960,-460.0,0.00020593,2]
[374095624,1753201844970,-558.99,0.00020594,2]
[374095625,1753201844982,-460.0,0.00020594,2]
[374095626,1753201844992,-1534.86,0.00020595,2]
[374095627,1753201845002,-460.0,0.00020596,2]
[374095628,1753201845011,-522.0,0.00020597,2]
[374095629,1753201845021,-460.0,0.00020597,2]
[374095630,1753201845031,-897.23,0.00020597,2]
[374095631,1753201845040,-349.977,0.00020605,2]
[374095632,1753201845050,-1109.63266383,0.00020659,3]
[374095633,1753201845060,-1559.51,0.00020673,2]
[374095634,1753201845070,-990.03,0.00020673,2]
[374095635,1753201845079,-944.46,0.00020673,2]
[374095636,1753201845089,-779.94,0.00020673,2]
[374095637,1753201845098,-911.02,0.00020674,2]
[374095638,1753201845108,-168.0,0.00020725,2]
[374095639,1753201845118,-168.0,0.00020793,2]
[374095640,1753201845127,-168.0,0.0002086,2]
[374095641,1753201845137,-460.0,0.00020867,2]
[374095642,1753201845147,-558.99,0.00020868,2]
[374095643,1753201845156,-460.0,0.00020868,2]
[374095644,1753201845166,-1534.86,0.00020869,2]
[374095645,1753201845175,-460.0,0.0002087,2]
[374095646,1753201845312,-522.0,0.00020871,2]
[374095647,1753201845322,-460.0,0.00020871,2]
[374095648,1753201845332,-897.23,0.00020871,2]
[374095649,1753201845341,-1109.63266383,0.00020934,4]
[374095650,1753201845352,-560.0,0.00020942,2]
[374095651,1753201845362,-1559.51,0.00020947,2]
[374095652,1753201845371,-990.03,0.00020947,2]
[374095653,1753201845382,-944.46,0.00020947,2]
[374095654,1753201845391,-779.94,0.00020947,2]
[374095655,1753201845401,-911.02,0.00020948,2]
[374095656,1753201845411,-2017.0,0.00020985,2]
[374095657,1753201845421,-2017.0,0.00020985,2]
[374095658,1753201845433,-166.78149167,0.00021,20]
[374095659,1753201845443,-7097.26346229,0.00021,2]
[374095660,1753201845528,-500.0,0.00021,2]
[374095661,1753201845540,-17578.5516,0.00021,2]
[374095662,1753201845556,-1314.88,0.00020674,2]
[374095663,1753201845565,-771866.58693614,0.00021,2]
[374095664,1753201845708,-2345.83880594,0.00021,2]
[374095678,1753201847260,-460.0,0.00016837,2]
[374095679,1753201847270,-460.0,0.00016837,2]
[374095680,1753201847279,-634.41276907,0.00019029,2]
[374095683,1753202170654,527.931327,0.00016247,2]
[374095684,1753202174454,11009.0194751,0.00016247,2]
[374095685,1753202215797,5000.0,0.00016765,2]
[374095686,1753202231162,3463.0491979,0.00016765,2]
[374095687,1753202231185,1536.9508021,0.00016765,2]
[374095688,1753202255517,10000.0,0.00016199,2]
[374095689,1753202274241,202.39091256,0.00016736,2]
[374095690,1753202275917,5000.0,0.00016765,2]
[374095691,1753202291774,3260.65828534,0.00016765,2]
[374095692,1753202291797,1739.34171466,0.00016765,2]
[374095693,1753202307651,5000.0,0.00016765,2]
[374095694,1753202323157,5000.0,0.00016765,2]
[374095695,1753202338532,5000.0,0.00016765,2]
[374095696,1753202354768,3260.65828534,0.00016765,2]
[374095697,1753202354790,1739.34171466,0.00016765,2]
[374095698,1753202371169,5000.0,0.00016765,2]
[374095699,1753202386405,5000.0,0.00016765,2]
[374095700,1753202401708,5000.0,0.00016765,2]
[374095702,1753202419942,3260.65828534,0.00016765,2]
[374095703,1753202419965,1739.34171466,0.00016765,2]
[374095704,1753202438172,5000.0,0.00016765,2]
[374095705,1753202453875,5000.0,0.00016765,2]
[374095706,1753202463746,2452.6711318,0.00016122,2]
[374095707,1753202469486,5000.0,0.00016765,2]
[374095708,1753202485115,807.98715354,0.00016765,2]
[374095709,1753202485138,4192.01284646,0.00016765,2]
[374095710,1753202500814,5000.0,0.00016765,2]
[374095711,1753202516601,5000.0,0.00016765,2]
[374095712,1753202532283,5000.0,0.00016765,2]
[374095713,1753202547697,807.98715354,0.00016765,2]
[374095714,1753202547724,4192.01284646,0.00016765,2]
[374095715,1753202562879,5000.0,0.00016765,2]
[374095716,1753202577781,5000.0,0.00016765,2]
[374095717,1753202584819,355.80164242,0.00016332,2]
[374095718,1753202593951,5000.0,0.00016765,2]
[374095719,1753202610180,452.18551112,0.00016765,2]
[374095720,1753202610203,4547.81448888,0.00016765,2]
[374095721,1753202625314,2691.58143601,0.00016765,2]
[374095723,1753202737010,277.264724,0.00013699,2]
[374095724,1753202886997,213.48098545,0.00016332,2]
[374095729,1753202968512,12269.85836566,0.00016216,2]
[374095730,1753202968535,12630.14163434,0.00016216,2]
[374095774,1753203032546,-300.0,0.00016834,2]
[374095776,1753203032556,-1200.0,0.00016834,2]
[374095778,1753203032566,-460.0,0.00016835,2]
[374095780,1753203032575,-460.0,0.00016835,2]
[374095782,1753203032585,-460.0,0.00016835,2]
[374095784,1753203032594,-460.0,0.00016835,2]
[374095786,1753203032603,-60.56195945,0.00016835,2]
[374095828,1753203038716,-469.49210582,0.00016835,2]
[374095829,1753203038727,-460.0,0.00016835,2]
[374095830,1753203038737,-460.0,0.00016835,2]
[374095831,1753203038747,-460.0,0.00016835,2]
[374095832,1753203038756,-423.76192844,0.00016835,2]
[374095833,1753203038768,-302.43348805,0.00016835,2]
[374095834,1753203038777,-184.27674955,0.00016835,2]
[374095835,1753203038790,-328.72325045,0.00016835,2]
[374095836,1753203038800,-141.01574957,0.00016835,2]
[374095837,1753203038811,-1453.84425043,0.00016835,2]
[374095838,1753203038821,-460.0,0.00016835,2]
[374095839,1753203038830,-460.0,0.00016835,2]
[374095840,1753203038839,-460.0,0.00016835,2]
[374095841,1753203038849,-460.0,0.00016835,2]
[374095843,1753203038859,-243.61936132,0.00016835,2]
[374095844,1753203038869,-460.0,0.00016835,2]
[374095845,1753203038880,-460.0,0.00016835,2]
[374095846,1753203038890,-460.0,0.00016835,2]
[374095847,1753203038899,-460.0,0.00016835,2]
[374095848,1753203038909,-523.54443036,0.00016836,2]
[374095849,1753203038918,-460.0,0.00016836,2]
[374095850,1753203038927,-460.0,0.00016836,2]
[374095851,1753203038937,-460.0,0.00016836,2]
[374095852,1753203038946,-460.0,0.00016836,2]
[374095853,1753203038956,-283.73294439,0.00016836,2]
[374095854,1753203038965,-460.0,0.00016836,2]
[374095855,1753203038975,-391.20412645,0.00016836,2]
[374095856,1753203038985,-460.0,0.00016836,2]
[374095857,1753203038994,-460.24700004,0.00016836,2]
[374095858,1753203039005,-460.0,0.00016836,2]
[374095859,1753203039018,-460.0,0.00016836,2]
[374095860,1753203039027,-470.53770146,0.00016836,2]
[374095861,1753203039037,-460.0,0.00016836,2]
[374095862,1753203039047,-460.0,0.00016836,2]
[374095863,1753203039057,-460.0,0.00016836,2]
[374095864,1753203039067,-460.10726647,0.00016836,2]
[374095865,1753203039076,-488.37319241,0.00016836,2]
[374095866,1753203039087,-460.0,0.00016836,2]
[374095867,1753203039096,-460.62520124,0.00016836,2]
[374095868,1753203039106,-460.0,0.00016836,2]
[374095869,1753203039115,-468.54737302,0.00016836,2]
[374095870,1753203039132,-531.45262698,0.00016836,2]
[374095871,1753203039142,-460.87862085,0.00016836,2]
[374095872,1753203039151,-460.0,0.00016836,2]
[374095873,1753203039161,-460.0,0.00016836,2]
[374095874,1753203039171,-460.0,0.00016836,2]
[374095875,1753203039181,-460.0,0.00016836,2]
[374095876,1753203039191,-380.00000001,0.00016836,2]
[374095877,1753203039200,-460.0,0.00016836,2]
[374095878,1753203039209,-460.0,0.00016836,2]
[374095879,1753203039219,-460.0,0.00016836,2]
[374095880,1753203039228,-460.0,0.00016836,2]
[374095881,1753203039238,-555.83,0.00016836,2]
[374095882,1753203039247,-460.0,0.00016836,2]
[374095883,1753203039257,-500.0,0.00016836,2]
[374095884,1753203039267,-460.0,0.00016836,2]
[374095885,1753203039276,-460.0,0.00016836,2]
[374095886,1753203039287,-539.21,0.00016836,2]
[374095887,1753203039297,-460.0,0.00016836,2]
[374095888,1753203039307,-460.0,0.00016836,2]
[374095889,1753203039316,-448.31200967,0.00016836,2]
[374095890,1753203039325,-487.96,0.00016836,2]
[374095891,1753203039335,-460.0,0.00016836,2]
[374095892,1753203039344,-460.0,0.00016836,2]
[374095893,1753203039355,-927.19,0.00016836,2]
[374095894,1753203039529,-460.0,0.00016836,2]
[374095895,1753203039541,-460.0,0.00016836,2]
[374095896,1753203039551,-460.0,0.00016836,2]
[374095897,1753203039560,-460.0,0.00016836,2]
[374095898,1753203039570,-460.0,0.00016836,2]
[374095899,1753203039581,-460.0,0.00016836,2]
[374095900,1753203039590,-460.0,0.00016836,2]
[374095901,1753203039600,-460.0,0.00016836,2]
[374095902,1753203039609,-460.0,0.00016836,2]
[374095903,1753203039619,-460.0,0.00016836,2]
[374095904,1753203039628,-460.0,0.00016836,2]
[374095905,1753203039638,-460.0,0.00016836,2]
[374095906,1753203039647,-460.0,0.00016836,2]
[374095907,1753203039657,-460.0,0.00016836,2]
[374095908,1753203039667,-460.0,0.00016836,2]
[374095909,1753203039677,-460.0,0.00016836,2]
[374095910,1753203039686,-460.0,0.00016836,2]
[374095911,1753203039696,-460.0,0.00016836,2]
[374095912,1753203039707,-460.0,0.00016836,2]
[374095913,1753203039716,-460.0,0.00016836,2]
[374095914,1753203039726,-460.0,0.00016836,2]
[374095915,1753203039735,-460.0,0.00016836,2]
[374095916,1753203039745,-460.0,0.00016836,2]
[374095917,1753203039755,-460.0,0.00016836,2]
[374095918,1753203039764,-572.16,0.00016836,2]
[374095919,1753203039774,-460.0,0.00016836,2]
[374095920,1753203039784,-460.0,0.00016836,2]
[374095921,1753203039794,-460.0,0.00016836,2]
[374095922,1753203039803,-502.94281649,0.00016836,2]
[374095923,1753203039813,-460.0,0.00016836,2]
[374095924,1753203039823,-460.0,0.00016836,2]
[374095925,1753203039834,-460.0,0.00016836,2]
[374095926,1753203039843,-460.0,0.00016836,2]
[374095927,1753203039852,-460.0,0.00016836,2]
[374095928,1753203039862,-460.0,0.00016836,2]
[374095929,1753203039872,-460.0,0.00016836,2]
[374095930,1753203039881,-460.0,0.00016836,2]
[374095931,1753203039891,-460.0,0.00016836,2]
[374095932,1753203039901,-460.0,0.00016836,2]
[374095933,1753203039910,-460.0,0.00016836,2]
[374095934,1753203039919,-493.03,0.00016836,2]
[374095935,1753203039929,-460.0,0.00016836,2]
[374095936,1753203039938,-460.0,0.00016836,2]
[374095937,1753203039947,-460.0,0.00016836,2]
[374095938,1753203039957,-460.0,0.00016836,2]
[374095939,1753203039966,-460.0,0.00016836,2]
[374095940,1753203039976,-460.0,0.00016837,2]
[374095941,1753203039986,-460.0,0.00016837,2]
[374095942,1753203039995,-460.0,0.00016837,2]
[374095943,1753203040005,-460.0,0.00016837,2]
[374095944,1753203040016,-460.0,0.00016837,2]
[374095945,1753203040026,-460.0,0.00016837,2]
[374095946,1753203040036,-285.29443739,0.00016837,2]
[374095947,1753203040047,-460.0,0.00016837,2]
[374095948,1753203040057,-190.84,0.00016837,2]
[374095949,1753203040067,-460.0,0.00016837,2]
[374095950,1753203040076,-460.0,0.00016837,2]
[374095951,1753203040086,-418.46886425,0.00016837,2]
[374095952,1753203040097,-460.0,0.00016837,2]
[374095953,1753203040107,-460.0,0.00016837,2]
[374095955,1753203040116,-463.1419334,0.00016837,2]
[374095956,1753203040125,-460.0,0.00016837,2]
[374095958,1753203040135,-460.0,0.00016837,2]
[374095961,1753203040144,-460.0,0.00016837,2]
[374095962,1753203040154,-460.0,0.00016837,2]
[374095964,1753203040163,-460.0,0.00016837,2]
[374095965,1753203040173,-460.0,0.00016837,2]
[374095966,1753203040183,-470.19602813,0.00016837,2]
[374095968,1753203040193,-460.0,0.00016837,2]
[374095970,1753203040202,-469.88,0.00016837,2]
[374095972,1753203040211,-460.0,0.00016837,2]
[374095974,1753203040221,-460.0,0.00016837,2]
[374095976,1753203040230,-460.0,0.00016837,2]
[374095978,1753203040239,-460.0,0.00016837,2]
[374095980,1753203040248,-460.0,0.00016837,2]
[374095982,1753203040258,-460.0,0.00016837,2]
[374095984,1753203040267,-460.0,0.00016837,2]
[374095986,1753203040277,-460.0,0.00016837,2]
[374095988,1753203040287,-465.07885507,0.00016837,2]
[374095990,1753203040297,-460.0,0.00016837,2]
[374095992,1753203040307,-460.0,0.00016837,2]
[374095994,1753203040317,-460.0,0.00016837,2]
[374095995,1753203040326,-460.0,0.00016837,2]
[374095997,1753203040336,-460.0,0.00016837,2]
[374095999,1753203040346,-460.0,0.00016837,2]
[374096001,1753203040355,-460.0,0.00016837,2]
[374096003,1753203040365,-460.0,0.00016837,2]
[374096005,1753203040374,-460.0,0.00016837,2]
[374096007,1753203040384,-460.0,0.00016837,2]
[374096009,1753203040396,-460.0,0.00016837,2]
[374096011,1753203040406,-460.0,0.00016837,2]
[374096013,1753203040417,-500.0,0.00016837,2]
[374096015,1753203040427,-460.0,0.00016837,2]
[374096017,1753203040437,-460.0,0.00016837,2]
[374096019,1753203040446,-460.0,0.00016837,2]
[374096021,1753203040456,-460.0,0.00016837,2]
[374096023,1753203040466,-500.0,0.00016837,2]
[374096025,1753203040475,-460.0,0.00016837,2]
[374096027,1753203040485,-460.0,0.00016837,2]
[374096029,1753203040495,-460.0,0.00016837,2]
[374096031,1753203040504,-460.0,0.00016837,2]
[374096033,1753203040513,-460.0,0.00016837,2]
[374096035,1753203040522,-460.0,0.00016837,2]
[374096036,1753203040533,-460.0,0.00016837,2]
[374096038,1753203040542,-460.0,0.00016837,2]
[374096040,1753203040552,-460.0,0.00016837,2]
[374096042,1753203040562,-460.0,0.00016837,2]
[374096044,1753203040572,-460.0,0.00016837,2]
[374096046,1753203040584,-460.0,0.00016837,2]
[374096048,1753203040594,-460.0,0.00016837,2]
[374096050,1753203040603,-460.0,0.00016837,2]
[374096052,1753203040613,-460.0,0.00016837,2]
[374096054,1753203040623,-460.0,0.00016837,2]
[374096056,1753203040634,-595.54,0.00016837,2]
[374096058,1753203040643,-500.0,0.00016837,2]
[374096059,1753203040653,-500.0,0.00016837,2]
[374096061,1753203040662,-460.0,0.00016837,2]
[374096063,1753203040672,-460.96913146,0.00016837,2]
[374096065,1753203040681,-460.0,0.00016837,2]
[374096066,1753203040691,-460.0,0.00016837,2]
[374096067,1753203040700,-290.3,0.00016837,2]
[374096068,1753203040709,-668.02,0.00016837,2]
[374096069,1753203040719,-460.0,0.00016837,2]
[374096070,1753203040728,-460.0,0.00016837,2]
[374096071,1753203040738,-460.0,0.00016837,2]
[374096072,1753203040747,-460.0,0.00016837,2]
[374096073,1753203040757,-460.0,0.00016838,2]
[374096074,1753203040768,-461.39437186,0.00016838,2]
[374096075,1753203040778,-460.0,0.00016838,2]
[374096076,1753203040787,-460.0,0.00016838,2]
[374096077,1753203040798,-462.88692985,0.00016838,2]
[374096078,1753203040808,-460.0,0.00016838,2]
[374096079,1753203040818,-460.0,0.00016838,2]
[374096080,1753203040827,-460.0,0.00016838,2]
[374096081,1753203040836,-460.0,0.00016838,2]
[374096082,1753203040849,-460.0,0.00016838,2]
[374096083,1753203040862,-460.0,0.00016838,2]
[374096084,1753203040874,-269.04579893,0.00016838,2]
[374096085,1753203040886,-460.0,0.00016838,2]
[374096086,1753203040898,-460.0,0.00016838,2]
[374096087,1753203040911,-455.10044836,0.00016838,2]
[374096088,1753203041029,-4.89955164,0.00016838,2]
[374096089,1753203041040,-500.0,0.00016838,2]
[374096090,1753203041053,-185.02,0.00016838,2]
[374096091,1753203041066,-460.0,0.00016838,2]
[374096092,1753203041076,-466.6653743,0.00016838,2]
[374096093,1753203041088,-460.0,0.00016838,2]
[374096094,1753203041100,-460.0,0.00016838,2]
[374096095,1753203041111,-286.59412107,0.00016838,2]
[374096096,1753203041123,-460.0,0.00016838,2]
[374096097,1753203041134,-400.54044011,0.00016838,2]
[374096098,1753203041145,-460.0,0.00016838,2]
[374096099,1753203041156,-460.0,0.00016838,2]
[374096100,1753203041167,-460.0,0.00016838,2]
[374096101,1753203041177,-500.0,0.00016838,2]
[374096102,1753203041186,-500.0,0.00016838,2]
[374096103,1753203041196,-460.0,0.00016838,2]
[374096104,1753203041207,-460.0,0.00016838,2]
[374096105,1753203041218,-893.16,0.00017032,2]
[374096106,1753203041228,-460.0,0.00017032,2]
[374096107,1753203041239,-460.0,0.00017032,2]
[374096108,1753203041250,-460.0,0.00017032,2]
[374096109,1753203041273,-460.0,0.00017032,2]
[374096110,1753203041288,-460.0,0.00017032,2]
[374096112,1753203041301,-460.0,0.00017032,2]
[374096114,1753203041315,-430.51398226,0.00017109,2]
[374096116,1753203041332,-91.54601774,0.00017109,2]
[374096118,1753203041346,-460.0,0.00017109,2]
[374096120,1753203041360,-1594.86,0.00017109,2]
[374096122,1753203041373,-460.0,0.00017109,2]
[374096124,1753203041388,-460.0,0.00017109,2]
[374096127,1753203041400,-225.07557739,0.00017109,2]
[374096309,1753203043547,-460.0,0.00016835,2]
[374096311,1753203043558,-460.0,0.00016835,2]
[374096314,1753203043571,-234.92442261,0.00017109,2]
[374096316,1753203043583,-460.0,0.00017109,2]
[374096319,1753203043597,-500.0,0.0001711,2]
[374096321,1753203043609,-313.6,0.0001711,2]
[374096323,1753203043621,-460.0,0.0001711,2]
[374096325,1753203043631,-460.0,0.0001711,2]
[374096327,1753203043642,-927.19,0.0001711,2]
[374096329,1753203043653,-208.35,0.0001711,2]
[374096331,1753203043666,-460.0,0.0001711,2]
[374096334,1753203043678,-460.0,0.0001711,2]
[374096336,1753203043690,-507.8,0.0001711,2]
[374096338,1753203043704,-460.0,0.0001711,2]
[374096340,1753203043717,-546.36,0.0001711,2]
[374096343,1753203043728,-460.0,0.0001711,2]
[374096346,1753203043738,-460.0,0.0001711,2]
[374096349,1753203043748,-493.34,0.0001711,2]
[374096352,1753203043758,-460.0,0.0001711,2]
[374096355,1753203043767,-572.16,0.0001711,2]
[374096358,1753203043778,-460.0,0.0001711,2]
[374096361,1753203043788,-460.0,0.0001711,2]
[374096363,1753203043802,-460.0,0.0001711,2]
[374096365,1753203043814,-460.0,0.0001711,2]
[374096368,1753203043826,-322.03,0.0001711,2]
[374096370,1753203043837,-460.0,0.0001711,2]
[374096372,1753203043849,-460.0,0.0001711,2]
[374096374,1753203043860,-460.0,0.0001711,2]
[374096376,1753203043872,-173.87,0.0001711,2]
[374096379,1753203043883,-460.0,0.0001711,2]
[374096381,1753203043895,-231.06,0.0001711,2]
[374096383,1753203043907,-460.0,0.0001711,2]
[374096385,1753203043919,-512.22,0.00017111,2]
[374096388,1753203043935,-460.0,0.00017111,2]
[374096390,1753203043947,-460.0,0.00017111,2]
[374096392,1753203043958,-233.77,0.00017111,2]
[374096394,1753203043971,-460.0,0.00017111,2]
[374096397,1753203043983,-460.0,0.00017111,2]
[374096399,1753203043994,-539.29,0.00017111,2]
[374096401,1753203044006,-216.0,0.00017111,2]
[374096403,1753203044021,-251.87007617,0.00017111,2]
[374096406,1753203044036,-208.12992383,0.00017111,2]
[374096408,1753203044047,-460.0,0.00017111,2]
[374096410,1753203044059,-460.0,0.00017111,2]
[374096412,1753203044070,-181.47467395,0.00017111,2]
[374096414,1753203044084,-316.72532605,0.00017111,2]
[374096416,1753203044095,-460.0,0.00017111,2]
[374096418,1753203044107,-460.0,0.00017111,2]
[374096421,1753203044119,-460.0,0.00017111,2]
[374096423,1753203044129,-460.0,0.00017111,2]
[374096425,1753203044140,-668.02,0.00017111,2]
[374096427,1753203044151,-460.0,0.00017111,2]
[374096429,1753203044162,-460.0,0.00017111,2]
[374096431,1753203044174,-460.0,0.00017112,2]
[374096434,1753203044185,-893.16,0.00017306,2]
[374096436,1753203044197,-460.0,0.00017306,2]
[374096438,1753203044207,-460.0,0.00017306,2]
[374096440,1753203044221,-460.0,0.00017306,2]
[374096442,1753203044232,-460.0,0.00017306,2]
[374096444,1753203044243,-460.0,0.00017306,2]
[374096445,1753203044253,-351.31,0.00017375,3]
[374096446,1753203044264,-340.83103906,0.00017383,2]
[374096673,1753203046628,-877.6749975,0.00017383,2]
[374096732,1753203047206,-324.65567513,0.00017383,2]
[374096734,1753203047218,-51.69828831,0.00017383,2]
[374096736,1753203047228,-270.64603656,0.00017383,2]
[374098290,1753203135717,250.0,0.00015783,2]
[374098291,1753203293283,150.0,0.00014894,2]
[374098292,1753203293696,150.0,0.00016248,2]
[374098293,1753203350077,6819.85836566,0.00015973,2]
[374098294,1753203350102,3180.14163434,0.00015973,2]
[374098295,1753203360744,150.0,0.00015089,2]
[374098296,1753203361167,150.0,0.00016461,2]
[374098297,1753203381432,846.181977,0.00015973,2]
[374098298,1753203429210,150.0,0.00014902,2]
[374098300,1753203812672,263.401487,0.00013699,2]
[374098301,1753203860925,5919.468944,0.00015836,2]
[374098302,1753203981908,9340.80595766,0.00015835,2]
[374098303,1753203981930,15559.19404234,0.00015835,2]
[374098333,1753204233530,-1200.0,0.00016831,2]
[374098334,1753204233541,-300.0,0.00016832,2]
[374098335,1753204233551,-300.0,0.00016832,2]
[374098336,1753204233560,-300.0,0.00016832,2]
[374098337,1753204233571,-300.0,0.00016832,2]
[374098338,1753204233582,-300.0,0.00016832,2]
[374098339,1753204233592,-1200.0,0.00016832,2]
[374098340,1753204233602,-460.0,0.00016833,2]
[374098341,1753204233615,-463.03956493,0.00016833,2]
[374098342,1753204233626,-460.0,0.00016833,2]
[374098343,1753204233636,-849.93,0.00016833,2]
[374098344,1753204233645,-460.0,0.00016833,2]
[374098345,1753204233655,-460.0,0.00016833,2]
[374098346,1753204233665,-539.31,0.00016833,2]
[374098347,1753204233674,-460.0,0.00016833,2]